bitfinex/quotes_ETHUSD_20250112
["timestamp","ask_amount","ask_price","bid_price","bid_amount"]
[1736667186244,0.04675335,3276.2,3275.8,6.48987747]
[1736667191214,0.8186,3276.1,3275.8,6.48987747]
[1736667192252,0.8186,3276.1,3275.8,5.28]
[1736667192625,0.04636009,3276.0,3275.8,5.28]
[1736667196163,0.04636009,3276.0,3275.8,6.48987747]
[1736667196453,0.04636009,3276.0,3275.8,7.13886522]
[1736667196658,0.04675335,3276.2,3275.8,7.13886522]
[1736667196860,0.04675335,3276.2,3275.8,6.48987747]
[1736667196861,0.04642576,3275.9,3275.8,6.48987747]
[1736667197158,0.04675335,3276.2,3275.8,6.48987747]
[1736667197679,0.04649829,3276.1,3275.8,6.48987747]
[1736667198856,0.04675335,3276.2,3275.8,6.48987747]
[1736667199057,0.04646203,3276.0,3275.8,6.48987747]
[1736667199256,0.04675335,3276.2,3275.8,6.48987747]
[1736667199459,0.04642576,3275.9,3275.8,6.48987747]
[1736667199786,0.04675335,3276.2,3275.8,6.48987747]
[1736667200257,0.04649829,3276.1,3275.8,6.48987747]
[1736667210791,0.04649829,3276.1,3275.8,5.28]
[1736667211374,2.89967,3276.0,3275.8,5.28]
[1736667211570,2.1749684,3275.9,3275.8,5.28]
[1736667211779,2.22112969,3275.9,3275.8,5.28]
[1736667212189,3.28243266,3275.9,3275.8,5.28]
[1736667212416,4.49231013,3275.9,3275.8,5.28]
[1736667212989,3.28243266,3275.9,3275.8,5.28]
[1736667213717,2.90006,3275.4,3274.8,1.20987747]
[1736667213883,3.10606,3275.4,3274.8,1.20987747]
[1736667214089,0.04566411,3275.3,3274.9,0.64898775]
[1736667214704,0.04566411,3275.3,3275.0,1.20987747]
[1736667216615,0.04566411,3275.3,3274.9,0.64898775]
[1736667216820,0.08382986,3275.3,3274.9,0.64898775]
[1736667222094,2.22103986,3275.3,3274.7,5.28]
[1736667222423,0.7629,3275.2,3274.7,5.28]
[1736667222721,0.08367945,3275.1,3274.7,5.28]
[1736667224926,0.04551017,3275.1,3274.8,1.20987747]
[1736667232769,0.04551017,3275.1,3275.0,1.20987747]
[1736667232965,0.9656,3275.5,3275.0,1.40936223]
[1736667233169,0.206,3275.5,3275.2,1.20987747]
[1736667234116,0.04388643,3275.4,3275.2,1.20987747]
[1736667235257,0.04388643,3275.4,3275.1,0.7667]
[1736667235446,0.04388643,3275.4,3275.0,6.48987747]
[1736667237849,0.8222,3275.3,3275.0,6.48987747]
[1736667238178,0.04375155,3275.2,3275.0,6.48987747]
[1736667238384,0.8222,3275.3,3275.0,6.48987747]
[1736667238846,0.04375155,3275.2,3275.0,7.13886522]
[1736667239046,0.206,3275.5,3275.0,7.13886522]
[1736667239246,0.206,3275.5,3275.0,6.48987747]
[1736667239447,0.8222,3275.3,3275.0,5.28]
[1736667239644,0.04375155,3275.2,3275.0,5.28]
[1736667239865,0.8222,3275.3,3275.0,5.28]
[1736667240084,0.04375155,3275.2,3275.0,5.28]
[1736667240287,0.8222,3275.3,3275.0,5.28]
[1736667240487,2.18102155,3275.2,3275.0,5.28]
[1736667240652,2.99769607,3275.1,3275.0,5.28]
[1736667240847,0.86399389,3275.1,3275.0,5.28]
[1736667241452,0.90216207,3275.1,3275.0,5.28]
[1736667243452,0.86399389,3275.1,3275.0,5.28]
[1736667246007,0.86399389,3275.1,3274.8,1.20987747]
[1736667246357,0.7581,3275.3,3274.8,1.20987747]
[1736667246726,0.04183018,3275.2,3274.8,1.20987747]
[1736667247063,0.7581,3275.3,3274.8,1.20987747]
[1736667247420,0.04183018,3275.2,3274.8,2.02557747]
[1736667247790,0.7581,3275.3,3274.8,2.02557747]
[1736667248121,0.04183018,3275.2,3274.8,2.02557747]
[1736667248524,0.7581,3275.3,3274.8,2.02557747]
[1736667248710,0.04179389,3275.1,3274.8,2.02557747]
[1736667248898,0.04183018,3275.2,3274.8,2.02557747]
[1736667249099,0.7581,3275.3,3274.8,2.02557747]
[1736667249303,0.04183018,3275.2,3274.8,2.02557747]
[1736667249822,2.89531,3275.3,3274.8,2.02557747]
[1736667250027,0.04179389,3275.1,3274.8,2.02557747]
[1736667250333,0.0417576,3275.0,3274.8,2.02557747]
[1736667250491,0.0417576,3275.0,3274.8,2.2299622]
[1736667250692,0.7581,3275.3,3274.8,2.2299622]
[1736667250887,0.04183018,3275.2,3274.8,2.2299622]
[1736667251088,0.7581,3275.3,3274.8,2.2299622]
[1736667251331,0.04183018,3275.2,3274.8,2.02557747]
[1736667251827,0.7581,3275.3,3274.8,2.02557747]
[1736667252021,0.04179389,3275.1,3274.8,2.02557747]
[1736667252230,0.04173788,3275.2,3274.8,2.02557747]
[1736667252389,0.0416653,3275.0,3274.8,2.02557747]
[1736667252589,0.7581,3275.3,3274.8,2.02557747]
[1736667253103,0.04173788,3275.2,3274.8,2.02557747]
[1736667253614,0.7581,3275.3,3274.8,2.02557747]
[1736667253815,0.04170159,3275.1,3274.8,2.02557747]
[1736667254133,0.0416653,3275.0,3274.8,2.02557747]
[1736667254428,0.0416653,3275.0,3274.8,2.2299622]
[1736667254620,2.93347783,3275.3,3274.8,2.02557747]
[1736667255026,0.04028505,3275.2,3274.8,2.02557747]
[1736667255384,2.3431,3275.5,3274.8,2.02557747]
[1736667255593,0.04024876,3275.1,3274.8,2.02557747]
[1736667255792,3.1329,3275.5,3274.8,2.02557747]
[1736667256028,0.04021247,3275.0,3274.8,2.02557747]
[1736667256331,0.04017617,3274.9,3274.8,2.02557747]
[1736667256825,2.13721,3275.3,3274.8,0.8157]
[1736667257033,0.04014401,3274.9,3274.8,0.8157]
[1736667257206,2.13721,3275.3,3274.8,0.8157]
[1736667257396,0.04015692,3274.9,3274.8,0.8157]
[1736667257595,2.13721,3275.3,3274.8,0.8157]
[1736667257799,0.04009126,3274.9,3274.8,0.8157]
[1736667258102,2.13721,3275.3,3274.8,0.8157]
[1736667258332,0.04018796,3275.2,3274.8,0.8157]
[1736667258695,2.13721,3275.3,3274.8,0.8157]
[1736667259120,0.04026107,3275.2,3274.8,0.8157]
[1736667259732,0.04024876,3275.1,3274.8,0.8157]
[1736667260031,0.03816599,3275.4,3274.8,0.8157]
[1736667260233,0.04021247,3275.0,3274.8,0.8157]
[1736667260434,0.03816599,3275.4,3274.8,0.8157]
[1736667260737,0.206,3275.3,3274.8,0.8157]
[1736667260936,0.24632133,3275.3,3274.8,0.8157]
[1736667262316,0.24632133,3275.3,3274.6,2.02357747]
[1736667262812,0.206,3275.3,3274.6,2.02357747]
[1736667263938,0.206,3275.3,3274.6,7.30357747]
[1736667264439,2.34322,3275.3,3274.6,7.30357747]
[1736667264738,0.84007756,3275.2,3274.6,7.30357747]
[1736667264896,2.97735756,3275.2,3274.6,7.30357747]
[1736667266110,0.84007756,3275.2,3274.6,7.30357747]
[1736667266316,0.206,3275.3,3274.6,7.30357747]
[1736667266515,0.04027417,3275.2,3274.6,7.30357747]
[1736667266715,0.04027417,3275.2,3274.7,0.73035775]
[1736667267116,0.04027417,3275.2,3274.7,0.74862447]
[1736667267438,0.04027417,3275.2,3274.8,1.20987747]
[1736667267803,0.206,3275.3,3274.8,1.20987747]
[1736667268004,0.04023788,3275.1,3274.8,1.20987747]
[1736667268203,0.04027417,3275.2,3274.8,1.20987747]
[1736667268405,0.04020159,3275.0,3274.8,1.20987747]
[1736667268628,0.206,3275.3,3274.8,1.20987747]
[1736667268856,0.0401653,3274.9,3274.8,1.20987747]
[1736667269037,0.206,3275.3,3274.8,1.94206189]
[1736667269241,0.0401653,3274.9,3274.8,1.20987747]
[1736667269404,0.206,3275.3,3274.8,1.20987747]
[1736667269603,0.0401653,3274.9,3274.8,1.20987747]
[1736667269827,0.206,3275.3,3274.8,1.20987747]
[1736667270029,0.0401653,3274.9,3274.8,1.20987747]
[1736667270343,0.0401653,3274.9,3274.8,1.94206189]
[1736667270546,0.206,3275.3,3274.8,1.94206189]
[1736667270705,0.0401653,3274.9,3274.8,1.20987747]
[1736667271044,0.206,3275.3,3274.8,1.20987747]
[1736667271234,0.0401653,3274.9,3274.8,1.20987747]
[1736667271431,0.206,3275.3,3274.8,1.20987747]
[1736667271635,0.04015647,3274.9,3274.8,1.20987747]
[1736667271942,0.04015647,3274.9,3274.8,2.55933261]
[1736667272144,0.206,3275.3,3274.8,1.94206189]
[1736667272305,0.04015647,3274.9,3274.8,1.20987747]
[1736667272510,2.38137689,3275.3,3274.8,1.20987747]
[1736667272721,0.04026534,3275.2,3274.6,7.30357747]
[1736667274759,0.04026534,3275.2,3274.7,0.01826678]
[1736667276223,0.04026534,3275.2,3275.0,1.98637747]
[1736667276421,0.04026534,3275.2,3275.1,0.19863775]
[1736667276661,0.206,3275.6,3275.1,0.19863775]
[1736667276961,0.04039038,3275.5,3275.2,1.20987747]
[1736667277430,0.04039038,3275.5,3275.2,1.22813677]
[1736667277637,0.997,3275.7,3275.2,1.22813677]
[1736667277839,0.0403541,3275.4,3275.2,1.22813677]
[1736667278047,0.997,3275.7,3275.2,1.22813677]
[1736667278246,0.04031782,3275.3,3275.2,1.22813677]
[1736667278453,0.997,3275.7,3275.2,1.22813677]
[1736667278655,0.04031782,3275.3,3275.2,1.22813677]
[1736667278874,0.997,3275.7,3275.2,1.20987747]
[1736667279060,0.04031782,3275.3,3275.2,1.20987747]
[1736667279223,0.997,3275.7,3275.2,1.20987747]
[1736667279424,0.04031782,3275.3,3275.2,1.20987747]
[1736667279623,0.997,3275.7,3275.2,1.20987747]
[1736667279959,0.04031782,3275.3,3275.2,1.20987747]
[1736667280169,0.997,3275.7,3275.2,1.20987747]
[1736667280372,0.04031782,3275.3,3275.2,1.20987747]
[1736667280534,0.997,3275.7,3275.2,1.20987747]
[1736667280739,0.04042666,3275.6,3275.2,1.20987747]
[1736667282563,0.997,3275.7,3275.2,1.20987747]
[1736667282946,0.04042666,3275.6,3275.2,1.20987747]
[1736667287276,0.04042666,3275.6,3275.1,5.28]
[1736667287574,2.89248,3275.5,3275.1,5.28]
[1736667287772,0.03816488,3275.4,3275.1,5.28]
[1736667287978,0.0785897,3275.4,3274.9,6.48987747]
[1736667290578,2.2157597,3275.4,3274.9,6.48987747]
[1736667290747,1.05251597,3275.3,3274.9,5.28]
[1736667290947,0.04035756,3275.2,3274.9,5.28]
[1736667291246,0.7554,3275.3,3274.9,5.28]
[1736667291483,0.03816488,3275.4,3274.9,5.28]
[1736667291818,2.93301385,3275.3,3274.9,5.28]
[1736667291994,3.22631524,3275.3,3274.9,5.28]
[1736667293832,3.22631524,3275.3,3274.7,1.20987747]
[1736667294425,2.93301385,3275.3,3274.7,1.20987747]
[1736667296090,0.79579385,3275.3,3274.7,1.20987747]
[1736667299699,0.206,3275.2,3274.7,1.20987747]
[1736667300051,0.03743225,3275.1,3274.7,1.20987747]
[1736667300343,0.206,3275.2,3274.7,1.20987747]
[1736667300491,0.03743225,3275.1,3274.7,1.20987747]
[1736667300693,0.24416697,3275.2,3274.7,1.20987747]
[1736667301048,0.03603671,3275.1,3274.7,1.20987747]
[1736667301350,0.206,3275.2,3274.7,1.20987747]
[1736667301529,0.03573306,3275.1,3274.7,1.20987747]
[1736667302009,0.206,3275.2,3274.7,1.20987747]
[1736667302432,0.03573306,3275.1,3274.7,1.20987747]
[1736667302805,0.206,3275.2,3274.7,1.2281444]
[1736667303354,0.03573306,3275.1,3274.7,1.2281444]
[1736667303536,0.206,3275.2,3274.7,1.2281444]
[1736667303844,0.03573306,3275.1,3274.7,1.2281444]
[1736667304219,0.7554,3275.3,3274.9,1.20987747]
[1736667304434,0.206,3275.5,3275.1,1.20987747]
[1736667304607,0.03576935,3275.2,3275.1,1.20987747]
[1736667304807,0.206,3275.5,3275.1,1.20987747]
[1736667305010,0.03576935,3275.2,3275.1,1.20987747]
[1736667305204,0.206,3275.5,3275.1,1.20987747]
[1736667305408,0.03576935,3275.2,3275.1,1.20987747]
[1736667305626,0.206,3275.5,3275.1,1.20987747]
[1736667306157,0.03584192,3275.4,3275.1,1.20987747]
[1736667308174,0.79554192,3275.4,3275.0,5.28]
[1736667309441,0.03584192,3275.4,3275.0,5.2982605]
[1736667309667,0.03584192,3275.4,3275.0,5.28]
[1736667309802,0.03584192,3275.4,3275.0,5.29826045]
[1736667310792,0.03584192,3275.4,3275.0,6.09036045]
[1736667311001,0.03584192,3275.4,3275.0,6.0721]
[1736667311499,0.03584192,3275.4,3275.1,1.20987747]
[1736667312844,0.9657,3275.6,3275.1,1.20987747]
[1736667313046,0.03583823,3275.3,3275.1,1.20987747]
[1736667313245,0.9657,3275.6,3275.1,1.20987747]
[1736667313476,0.03580195,3275.2,3275.1,1.20987747]
[1736667313691,0.9657,3275.6,3275.1,1.20987747]
[1736667314031,0.0359108,3275.5,3275.1,1.20987747]
[1736667331949,0.0359108,3275.5,3275.3,1.20987747]
[1736667332150,0.205,3275.7,3275.3,2.00217747]
[1736667332521,0.09232019,3275.6,3275.3,2.00217747]
[1736667333909,0.09232019,3275.6,3275.5,1.20987747]
[1736667334244,0.09232019,3275.6,3275.5,4.15424747]
[1736667334550,0.25175335,3276.2,3275.6,0.0225]
[1736667334707,0.25175335,3276.2,3276.0,1.20987747]
[1736667334908,0.09254716,3276.1,3276.0,1.20987747]
[1736667336536,0.25175335,3276.2,3276.0,1.20987747]
[1736667336858,0.00790278,3276.1,3276.0,1.20987747]
[1736667337839,0.00790278,3276.1,3275.8,6.48987747]
[1736667338018,0.25175335,3276.2,3275.8,6.48987747]
[1736667340257,0.25175335,3276.2,3275.8,7.28187709]
[1736667345671,0.04675335,3276.2,3275.8,7.28187709]
[1736667347284,0.04675335,3276.2,3275.8,6.48987747]
[1736667347493,0.09056571,3276.1,3275.8,6.48987747]
[1736667347688,0.04675335,3276.2,3275.8,6.48987747]
[1736667347916,0.0905312,3276.0,3275.8,6.48987747]
[1736667348197,0.04675335,3276.2,3275.8,6.48987747]
[1736667348549,0.09056571,3276.1,3275.8,6.48987747]
[1736667348981,0.04675335,3276.2,3275.8,6.48987747]
[1736667349562,0.09056571,3276.1,3275.8,6.48987747]
[1736667349754,0.00818555,3276.1,3275.8,6.48987747]
[1736667349991,0.04675335,3276.2,3275.8,6.48987747]
[1736667350356,0.09056571,3276.1,3275.8,6.48987747]
[1736667350794,0.04675335,3276.2,3275.8,6.48987747]
[1736667351088,0.09056571,3276.1,3275.8,6.48987747]
[1736667351296,0.04675335,3276.2,3275.8,6.48987747]
[1736667351497,0.0905312,3276.0,3275.8,6.48987747]
[1736667351798,0.04675335,3276.2,3275.8,6.48987747]
[1736667352091,0.09056571,3276.1,3275.8,6.48987747]
[1736667352295,0.04675335,3276.2,3275.8,6.48987747]
[1736667352588,0.0905312,3276.0,3275.8,6.48987747]
[1736667352769,0.04675335,3276.2,3275.8,6.48987747]
[1736667353094,0.09056571,3276.1,3275.8,6.48987747]
[1736667353297,0.04675335,3276.2,3275.8,6.48987747]
[1736667353587,0.0905312,3276.0,3275.8,6.48987747]
[1736667353893,0.04675335,3276.2,3275.8,6.48987747]
[1736667354110,0.09049668,3275.9,3275.8,6.48987747]
[1736667354272,0.04675335,3276.2,3275.8,6.48987747]
[1736667354470,0.09049668,3275.9,3275.8,6.48987747]
[1736667354671,0.04675335,3276.2,3275.8,6.48987747]
[1736667355193,0.09056571,3276.1,3275.8,6.48987747]
[1736667355597,0.04675335,3276.2,3275.8,6.48987747]
[1736667355999,0.09057114,3276.1,3275.8,6.48987747]
[1736667356299,0.04675335,3276.2,3275.8,6.48987747]
[1736667356498,0.09053663,3276.0,3275.8,6.48987747]
[1736667356804,0.04675335,3276.2,3275.8,6.48987747]
[1736667357163,0.09057114,3276.1,3275.8,6.48987747]
[1736667357466,0.04675335,3276.2,3275.8,6.48987747]
[1736667357889,0.00819098,3276.1,3275.8,6.48987747]
[1736667358168,0.04675335,3276.2,3275.8,6.48987747]
[1736667358568,0.00819098,3276.1,3275.8,6.48987747]
[1736667358770,0.09057114,3276.1,3275.8,6.48987747]
[1736667359070,0.04675335,3276.2,3275.8,6.48987747]
[1736667359272,0.00830606,3276.0,3275.8,6.48987747]
[1736667359580,0.04675335,3276.2,3275.8,6.48987747]
[1736667359891,0.0083976,3276.1,3275.8,6.48987747]
[1736667360090,0.04675335,3276.2,3275.8,6.48987747]
[1736667360293,0.00851268,3276.0,3275.8,6.48987747]
[1736667360466,0.04675335,3276.2,3275.8,6.48987747]
[1736667360663,0.00862776,3275.9,3275.8,6.48987747]
[1736667360864,0.85315335,3276.2,3275.8,6.48987747]
[1736667361170,0.09070873,3275.9,3275.8,6.48987747]
[1736667361397,0.85315335,3276.2,3275.8,6.48987747]
[1736667361706,0.09070873,3275.9,3275.8,6.48987747]
[1736667361902,0.85315335,3276.2,3275.8,6.48987747]
[1736667362069,0.09070873,3275.9,3275.8,6.48987747]
[1736667362270,0.85315335,3276.2,3275.8,6.48987747]
[1736667362611,0.09070873,3275.9,3275.8,6.48987747]
[1736667362783,0.85315335,3276.2,3275.8,6.48987747]
[1736667363116,0.09077776,3276.1,3275.8,6.48987747]
[1736667363467,0.85315335,3276.2,3275.8,6.48987747]
[1736667363767,0.09074325,3276.0,3275.8,6.48987747]
[1736667363966,0.85315335,3276.2,3275.8,6.48987747]
[1736667364393,0.09077776,3276.1,3275.8,6.48987747]
[1736667364932,0.85315335,3276.2,3275.8,6.48987747]
[1736667365269,0.0083976,3276.1,3275.8,6.48987747]
[1736667365506,0.85315335,3276.2,3275.8,6.48987747]
[1736667365694,0.00851268,3276.0,3275.8,6.48987747]
[1736667365871,0.85315335,3276.2,3275.8,6.48987747]
[1736667366303,0.0083976,3276.1,3275.8,6.48987747]
[1736667366489,0.85315335,3276.2,3275.8,6.48987747]
[1736667366679,0.00851268,3276.0,3275.8,6.48987747]
[1736667366880,0.85315335,3276.2,3275.8,6.48987747]
[1736667367081,0.00862776,3275.9,3275.8,6.48987747]
[1736667367283,0.85315335,3276.2,3275.8,6.48987747]
[1736667367508,0.00862776,3275.9,3275.8,6.48987747]
[1736667367808,0.85315335,3276.2,3275.8,6.48987747]
[1736667368300,0.09077776,3276.1,3275.8,6.48987747]
[1736667368628,0.85315335,3276.2,3275.8,6.48987747]
[1736667369328,0.0083976,3276.1,3275.8,6.48987747]
[1736667369611,0.09077776,3276.1,3275.8,6.48987747]
[1736667369810,0.85315335,3276.2,3275.8,6.48987747]
[1736667370200,0.0083976,3276.1,3275.8,6.48987747]
[1736667370420,0.09077776,3276.1,3275.8,6.48987747]
[1736667370711,0.85315335,3276.2,3275.8,6.48987747]
[1736667370877,0.00848551,3276.0,3275.8,6.48987747]
[1736667371081,0.85315335,3276.2,3275.8,6.48987747]
[1736667371286,0.0086006,3275.9,3275.8,6.48987747]
[1736667371482,0.85315335,3276.2,3275.8,6.48987747]
[1736667371687,0.0086006,3275.9,3275.8,6.48987747]
[1736667371888,0.85315335,3276.2,3275.8,6.48987747]
[1736667372133,0.0086006,3275.9,3275.8,6.48987747]
[1736667372329,0.04675335,3276.2,3275.8,7.22034522]
[1736667372487,0.04675335,3276.2,3275.8,6.48987747]
[1736667373975,1.20987747,3276.0,3275.8,5.28]
[1736667374213,5.96786928,3275.9,3275.8,5.28]
[1736667374416,0.7929,3275.3,3274.8,1.20987747]
[1736667374585,0.7929,3275.3,3274.7,5.28]
[1736667374586,3.1732857,3275.3,3274.7,5.28]
[1736667374792,0.00849673,3275.2,3274.7,5.28]
[1736667374991,3.1732857,3275.3,3274.7,5.28]
[1736667375191,0.00852097,3275.1,3274.7,5.28]
[1736667375428,0.00836486,3275.2,3274.7,5.28]
[1736667375611,3.1732857,3275.3,3274.7,5.28]
[1736667375812,0.00833607,3275.1,3274.7,5.28]
[1736667376094,0.00845122,3275.0,3274.7,5.28]
[1736667376313,3.1732857,3275.3,3274.7,5.28]
[1736667376513,0.00860735,3274.9,3274.7,5.28]
[1736667376723,3.1732857,3275.3,3274.7,5.28]
[1736667376925,0.00872251,3274.8,3274.7,5.28]
[1736667377119,3.1732857,3275.3,3274.7,5.28]
[1736667377340,0.00872251,3274.8,3274.7,5.28]
[1736667377539,3.1732857,3275.3,3274.7,5.28]
[1736667377768,0.00868452,3274.8,3274.7,5.28]
[1736667377906,3.1732857,3275.3,3274.7,5.28]
[1736667378108,0.00868353,3274.8,3274.7,5.28]
[1736667378358,3.1732857,3275.3,3274.7,5.28]
[1736667378658,2.14559955,3275.2,3274.7,5.28]
[1736667378866,0.03816869,3275.1,3274.7,5.28]
[1736667379157,0.04661338,3275.1,3274.7,5.28]
[1736667381868,2.14578469,3275.1,3274.7,5.28]
[1736667382067,0.03816869,3275.0,3274.7,5.28]
[1736667382763,0.0463968,3275.0,3274.7,5.28]
[1736667383258,0.00822811,3275.0,3274.7,5.28]
[1736667383462,0.04639679,3275.0,3274.7,5.28]
[1736667383660,0.00822811,3275.0,3274.7,5.28]
[1736667383829,0.03816868,3275.2,3274.7,5.28]
[1736667384030,0.00811296,3275.1,3274.7,5.28]
[1736667399800,0.8172,3275.0,3274.7,5.28]
[1736667400011,0.03817091,3274.9,3274.7,5.28]
[1736667400162,0.04650332,3274.9,3274.3,0.8093]
[1736667400357,0.04650332,3274.9,3274.2,5.28]
[1736667400358,0.8172,3274.6,3274.2,5.28]
[1736667400571,0.24317651,3274.5,3273.9,6.0426]
[1736667400776,2.61677275,3274.5,3273.9,5.28]
[1736667401124,2.95501,3274.4,3273.9,5.28]
[1736667401335,0.03817754,3274.3,3273.9,5.28]
[1736667401532,0.04686037,3274.3,3273.9,5.28]
[1736667402632,2.13792,3274.2,3273.6,5.28]
[1736667402833,0.03818113,3274.1,3273.6,5.28]
[1736667402999,0.04679225,3274.1,3273.6,5.28]
[1736667403999,0.00861112,3274.1,3273.6,5.28]
[1736667405678,0.7781,3274.0,3273.6,5.28]
[1736667406181,0.78686479,3274.0,3273.6,5.28]
[1736667409565,0.7781,3274.0,3273.6,5.28]
[1736667410090,0.7781,3274.0,3273.7,1.20987747]
[1736667410232,0.7589,3274.3,3273.7,2.00907747]
[1736667410543,0.04680284,3274.2,3273.7,2.00907747]
[1736667410750,0.03818052,3274.2,3273.7,2.00907747]
[1736667411466,0.03818052,3274.2,3273.7,0.7992]
[1736667411675,0.205,3274.1,3273.7,0.7992]
[1736667412301,0.205,3274.1,3273.7,2.00907747]
[1736667419410,0.205,3274.1,3273.7,1.20987747]
[1736667420927,0.205,3274.1,3273.9,1.20987747]
[1736667421235,0.205,3274.4,3273.9,2.00907747]
[1736667421436,0.00898978,3274.0,3273.9,2.00907747]
[1736667421647,0.7589,3274.3,3273.7,3.09928975]
[1736667421797,0.00898978,3274.0,3273.9,1.20987747]
[1736667421998,0.7589,3274.3,3273.9,1.64079381]
[1736667422198,0.00898978,3274.0,3273.9,1.64079381]
[1736667422396,0.205,3274.4,3273.9,2.43999381]
[1736667422637,0.00898978,3274.0,3273.9,2.43999381]
[1736667423259,0.205,3274.4,3273.9,2.43999381]
[1736667423425,0.00898978,3274.0,3273.9,2.43999381]
[1736667423626,0.205,3274.4,3273.9,2.43999381]
[1736667423826,0.00898978,3274.0,3273.9,2.43999381]
[1736667424312,0.205,3274.4,3273.9,2.43999381]
[1736667424512,0.00898978,3274.0,3273.9,2.43999381]
[1736667424739,0.205,3274.4,3273.9,2.43999381]
[1736667424943,0.00898978,3274.0,3273.9,2.00907747]
[1736667425137,0.205,3274.4,3273.9,2.00907747]
[1736667425439,0.00898978,3274.0,3273.9,2.00907747]
[1736667425601,0.205,3274.4,3273.9,2.00907747]
[1736667425795,0.00898978,3274.0,3273.7,1.20987747]
[1736667426035,0.7675,3274.0,3273.7,2.15493322]
[1736667426237,0.7675,3274.0,3273.7,1.20987747]
[1736667427440,0.00897048,3273.9,3273.7,1.20987747]
[1736667427635,0.7675,3274.0,3273.7,1.20987747]
[1736667427835,0.00897048,3273.9,3273.7,1.20987747]
[1736667428277,0.7675,3274.3,3273.7,1.2281728]
[1736667428477,0.7675,3274.3,3273.9,1.20987747]
[1736667428651,0.205,3274.4,3273.9,1.20987747]
[1736667428652,0.00862478,3274.2,3273.9,1.20987747]
[1736667428852,0.205,3274.4,3273.9,2.03227747]
[1736667429062,0.00847692,3274.3,3273.9,2.03227747]
[1736667430977,0.07878812,3274.2,3273.9,2.03227747]
[1736667431286,0.00847692,3274.3,3273.9,2.03227747]
[1736667431459,0.00870737,3274.1,3273.9,2.03227747]
[1736667431665,0.00882261,3274.0,3273.9,2.03227747]
[1736667431890,0.205,3274.4,3273.9,2.52445848]
[1736667432087,0.00847692,3274.3,3273.9,2.52445848]
[1736667432491,0.07878812,3274.2,3273.9,2.52445848]
[1736667432797,0.00847692,3274.3,3273.9,2.52445848]
[1736667432973,0.08734571,3274.1,3273.9,2.52445848]
[1736667433297,0.00882261,3274.0,3273.9,2.52445848]
[1736667433512,0.205,3274.4,3273.9,2.52445848]
[1736667433798,0.00882261,3274.0,3273.9,2.03227747]
[1736667433971,0.205,3274.4,3273.9,2.03227747]
[1736667434173,0.00882261,3274.0,3273.9,2.03227747]
[1736667434492,0.08731115,3274.0,3273.9,2.03227747]
[1736667434710,0.08731115,3274.0,3273.9,2.03977747]
[1736667434932,0.08731115,3274.0,3273.9,4.73143045]
[1736667435072,0.7524,3274.7,3273.9,4.73143045]
[1736667435273,0.292562,3274.6,3274.2,1.20987747]
[1736667435477,0.087562,3274.6,3274.2,1.20987747]
[1736667445343,0.7711,3274.4,3274.0,5.28]
[1736667445517,0.03817742,3274.3,3274.0,5.28]
[1736667445719,0.0468977,3274.3,3274.0,5.28]
[1736667446656,0.04689767,3274.3,3274.0,5.28]
[1736667447529,0.07852836,3274.2,3274.0,5.28]
[1736667447855,0.00874844,3274.2,3274.0,5.28]
[1736667448151,2.90889,3274.4,3274.0,5.28]
[1736667448338,3.199779,3274.4,3274.0,5.28]
[1736667448544,2.90889,3274.4,3274.0,5.28]
[1736667449622,2.90889,3274.4,3273.9,1.20987747]
[1736667451258,0.07867815,3274.3,3273.9,1.20987747]
[1736667454262,0.7711,3274.2,3273.8,5.28]
[1736667454580,0.07837857,3274.1,3273.8,5.28]
[1736667454747,0.7711,3274.2,3273.8,5.28]
[1736667454917,0.08720768,3274.0,3273.8,5.28]
[1736667455120,0.7711,3274.2,3273.8,5.28]
[1736667455343,0.08717312,3273.9,3273.8,5.28]
[1736667455548,0.7711,3274.2,3273.6,1.20987747]
[1736667457364,0.03818017,3274.1,3273.6,1.20987747]
[1736667459064,2.17617017,3274.1,3273.6,1.20987747]
[1736667459441,0.7711,3273.9,3273.6,1.20987747]
[1736667460625,0.08417372,3273.8,3273.6,1.20987747]
[1736667460987,0.7711,3273.9,3273.6,1.20987747]
[1736667461347,0.08417372,3273.8,3273.6,1.20987747]
[1736667461886,0.7711,3273.9,3273.6,1.20987747]
[1736667462186,0.08268119,3273.8,3273.6,1.20987747]
[1736667462385,0.7711,3273.9,3273.6,1.20987747]
[1736667462885,0.08268119,3273.8,3273.6,1.20987747]
[1736667463262,0.7711,3273.9,3273.6,1.20987747]
[1736667463785,0.08268119,3273.8,3273.6,1.20987747]
[1736667463950,0.7711,3273.9,3273.6,1.20987747]
[1736667464476,0.08268119,3273.8,3273.6,1.20987747]
[1736667464878,0.7711,3273.9,3273.6,1.20987747]
[1736667465265,0.08268119,3273.8,3273.6,1.20987747]
[1736667465591,0.7711,3273.9,3273.6,1.20987747]
[1736667465954,0.08268119,3273.8,3273.6,1.20987747]
[1736667466407,0.7711,3273.9,3273.6,1.20987747]
[1736667466606,0.08264662,3273.7,3273.6,1.20987747]
[1736667466911,0.7711,3273.9,3273.6,1.20987747]
[1736667467393,0.08268119,3273.8,3273.6,1.20987747]
[1736667467793,0.7711,3273.9,3273.6,1.20987747]
[1736667468282,0.08268119,3273.8,3273.6,1.20987747]
[1736667468658,0.7711,3273.9,3273.6,1.20987747]
[1736667468992,0.08268119,3273.8,3273.6,1.20987747]
[1736667469358,0.7711,3273.9,3273.6,1.20987747]
[1736667469874,0.08268119,3273.8,3273.6,1.20987747]
[1736667470214,0.7711,3273.9,3273.5,5.28]
[1736667470614,0.08268119,3273.8,3273.5,5.28]
[1736667470959,0.7711,3273.9,3273.5,5.28]
[1736667471211,0.205,3274.1,3273.5,5.29829486]
[1736667471359,0.08268119,3273.8,3273.6,1.20987747]
[1736667471559,1.0379,3274.1,3273.6,1.20987747]
[1736667471783,1.0379,3274.1,3273.6,2.03827747]
[1736667471993,0.8329,3274.4,3273.8,1.20987747]
[1736667472297,0.205,3274.3,3273.8,1.20987747]
[1736667472493,0.2878812,3274.3,3273.8,1.20987747]
[1736667472695,0.8329,3274.2,3273.7,2.1565448]
[1736667473011,0.07837857,3274.1,3273.8,0.21565448]
[1736667473585,0.20920305,3274.3,3273.8,0.21565448]
[1736667473790,0.08277752,3274.0,3273.7,4.19481512]
[1736667474097,0.205,3274.3,3273.7,4.19481512]
[1736667474260,0.004664,3273.9,3273.7,4.19481512]
[1736667474594,0.00477925,3273.8,3273.7,4.20231512]
[1736667474787,0.205,3274.3,3273.7,4.20231512]